bitfinex/quotes_SOLUSD_20260308
["timestamp","ask_amount","ask_price","bid_price","bid_amount"]
[1772982003217,0.45592496,82.287,82.244,0.46864866]
[1772982004704,0.48368698,82.285,82.246,0.46886867]
[1772982006019,0.48368698,82.283,82.248,0.46886867]
[1772982006316,0.48368698,82.279,82.248,0.46886867]
[1772982006496,42.53560837,82.284,82.244,0.46886867]
[1772982006818,12.15303096,82.284,82.245,0.46886867]
[1772982006996,12.15170184,82.293,82.245,0.46886867]
[1772982007997,0.48368698,82.289,82.247,0.46886867]
[1772982008715,12.15170184,82.293,82.247,0.46886867]
[1772982009309,0.48368698,82.294,82.248,0.46886867]
[1772982009508,12.1515244,82.295,82.248,0.46886867]
[1772982011323,0.48368698,82.302,82.251,0.46886867]
[1772982011500,5.21172868,82.3,82.251,0.46886867]
[1772982011823,0.48368698,82.299,82.251,0.46886867]
[1772982013624,0.48368698,82.299,82.241,103.6]
[1772982013625,0.48368698,82.304,82.257,4.82477569]
[1772982013805,0.48368698,82.304,82.253,0.28432314]
[1772982013806,0.48368698,82.304,82.261,0.46886867]
[1772982016029,0.48368698,82.302,82.264,0.46886867]
[1772982018313,0.48368698,82.3,82.266,0.46886867]
[1772982020534,0.48368698,82.298,82.268,0.46886867]
[1772982022235,0.48368698,82.289,82.257,12.15702007]
[1772982022540,0.48368698,82.289,82.242,42.84165394]
[1772982022729,12.1524402,82.288,82.242,42.84165394]
[1772982023035,0.48368698,82.287,82.242,42.84165394]
[1772982023810,0.48368698,82.285,82.242,42.84165394]
[1772982024229,0.48368698,82.285,82.243,0.46886867]
[1772982024921,1.6,82.312,82.243,0.46886867]
[1772982024922,0.48368698,82.291,82.243,0.46886867]
[1772982026127,0.48368698,82.291,82.246,0.46886867]
[1772982026128,0.48368698,82.29,82.246,0.46886867]
[1772982027243,0.48368698,82.29,82.249,0.46886867]
[1772982029449,0.48368698,82.29,82.251,0.75319181]
[1772982029738,0.48368698,82.29,82.252,0.46886867]
[1772982033129,0.48368698,82.29,82.255,0.49006312]
[1772982033733,0.49174109,82.288,82.255,0.49006312]
[1772982036051,0.49174109,82.288,82.257,0.49006312]
[1772982037333,0.49174109,82.288,82.259,0.49006312]
[1772982039558,0.49174109,82.295,82.261,0.49006312]
[1772982040645,42.5229158,82.309,82.262,12.64634427]
[1772982040646,0.49174109,82.293,82.262,12.64634427]
[1772982040845,0.49174109,82.293,82.263,0.49006312]
[1772982043950,0.49174109,82.291,82.262,12.15628111]
[1772982044147,0.49174109,82.291,82.262,12.64634423]
[1772982044658,0.49174109,82.291,82.263,0.49006312]
[1772982045957,0.49174109,82.289,82.265,0.49006312]
[1772982046163,12.15154864,82.295,82.265,0.49006312]
[1772982046351,12.64328973,82.295,82.265,0.49006312]
[1772982046663,0.49174109,82.294,82.265,0.49006312]
[1772982049945,0.49174109,82.292,82.267,0.49006312]
[1772982052762,0.49174109,82.29,82.269,0.49006312]
[1772982056365,0.49174109,82.29,82.271,0.49006312]
[1772982057476,0.49174109,82.288,82.271,0.49006312]
[1772982062072,0.49174109,82.286,82.271,0.49006312]
[1772982062266,0.49174109,82.286,82.272,12.15480357]
[1772982062778,0.49174109,82.286,82.271,0.49006312]
[1772982065575,0.49174109,82.286,82.271,12.64491646]
[1772982065776,0.49174109,82.286,82.272,0.49380247]
[1772982066460,0.45420581,82.302,82.272,0.49380247]
[1772982068172,0.45420581,82.301,82.274,0.49380247]
[1772982071073,0.45420581,82.301,82.276,0.49380247]
[1772982072282,0.45420581,82.301,82.277,12.15406492]
[1772982072486,0.45420581,82.301,82.278,0.49380247]
[1772982073681,0.45420581,82.301,82.28,0.49380247]
[1772982075266,12.1503533,82.303,82.28,0.49380247]
[1772982075678,0.45420581,82.306,82.282,0.49380247]
[1772982078369,0.45420581,82.304,82.282,0.49380247]
[1772982081386,0.45420581,82.302,82.284,0.49380247]
[1772982081890,30.36965949,82.319,82.284,0.49380247]
[1772982082783,12.14801137,82.318,82.284,0.49380247]
[1772982083879,0.45420581,82.315,82.286,0.49380247]
[1772982084075,0.45420581,82.315,82.285,12.15288327]
[1772982084476,0.45420581,82.315,82.286,0.49380247]
[1772982086494,0.45420581,82.313,82.288,0.49380247]
[1772982086692,1.6,82.331,82.288,0.49380247]
[1772982086693,0.45420581,82.324,82.288,0.49380247]
[1772982089477,1.6,82.349,82.29,0.49380247]
[1772982089478,0.45420581,82.322,82.29,0.49380247]
[1772982090591,12.14727354,82.323,82.29,0.49380247]
[1772982090979,0.45420581,82.322,82.29,0.49380247]
[1772982092496,1.6,82.349,82.286,0.49380247]
[1772982092497,0.45420581,82.32,82.286,0.49380247]
[1772982092697,0.45420581,82.32,82.263,0.48665019]
[1772982092698,0.47176857,82.319,82.263,0.48665019]
[1772982093882,0.47176857,82.317,82.268,0.62881176]
[1772982094089,0.47176857,82.317,82.269,0.48665019]
[1772982095411,0.47176857,82.317,82.27,0.48665019]
[1772982095598,0.47176857,82.317,82.271,0.48665019]
[1772982096295,0.47176857,82.315,82.274,0.48665019]
[1772982098392,0.47176857,82.315,82.276,0.48665019]
[1772982098607,12.14860169,82.314,82.276,0.48665019]
[1772982098986,0.47176857,82.335,82.278,0.48665019]
[1772982099200,0.47176857,82.34,82.287,5.31142588]
[1772982099505,0.47176857,82.34,82.29,0.48665019]
[1772982099705,0.1,82.35,82.301,0.48665019]
[1772982100009,0.1,82.35,82.302,0.48665019]
[1772982100402,0.57176857,82.35,82.302,0.48665019]
[1772982100602,0.47176857,82.349,82.305,0.48665019]
[1772982104115,0.47176857,82.349,82.308,0.48665019]
[1772982104411,0.1,82.35,82.308,0.48665019]
[1772982107918,0.1,82.35,82.311,0.48665019]
[1772982111226,0.57176857,82.35,82.314,0.48665019]
[1772982113125,0.1,82.35,82.314,0.48665019]
[1772982114324,0.1,82.35,82.316,0.48665019]
[1772982114527,0.47176857,82.349,82.316,0.48665019]
[1772982115403,0.1,82.35,82.318,0.48665019]
[1772982116928,0.1,82.35,82.319,0.48665019]
[1772982117622,0.1,82.35,82.322,0.48665019]
[1772982118327,0.47176857,82.349,82.322,0.48665019]
[1772982118733,0.1,82.35,82.322,0.48665019]
[1772982119610,0.1,82.35,82.324,0.48665019]
[1772982120231,0.47176857,82.379,82.327,0.48665019]
[1772982120431,0.1,82.39,82.34,3.69383402]
[1772982120635,0.47176857,82.383,82.342,0.48665019]
[1772982120812,0.47176857,82.382,82.342,0.48665019]
[1772982121329,0.1,82.39,82.35,0.28432314]
[1772982121538,0.1,82.39,82.351,0.48665019]
[1772982121708,0.1,82.39,82.353,0.28432314]
[1772982121913,0.1,82.39,82.354,0.48665019]
[1772982122113,0.47176857,82.399,82.355,0.48665019]
[1772982123117,0.48877491,82.408,82.362,0.45826519]
[1772982123825,0.48877491,82.408,82.365,0.45826519]
[1772982124719,0.4974999,82.406,82.365,0.45826519]
[1772982126054,0.4974999,82.406,82.367,0.47857918]
[1772982126263,0.4974999,82.406,82.368,0.47857918]
[1772982127167,0.4974999,82.399,82.339,0.47857918]
[1772982127365,0.4974999,82.369,82.332,0.47857918]
[1772982128160,0.4974999,82.367,82.313,0.47857918]
[1772982128354,0.4974999,82.359,82.313,0.47857918]
[1772982128746,4.72545664,82.36,82.313,0.47857918]
[1772982128747,0.4974999,82.349,82.313,0.47857918]
[1772982128950,0.4974999,82.349,82.309,0.47857918]
[1772982129762,0.4974999,82.349,82.307,42.52372215]
[1772982129763,0.4974999,82.349,82.307,12.1496349]
[1772982130068,0.4974999,82.339,82.31,0.47857918]
[1772982131259,0.4974999,82.339,82.305,12.14990965]
[1772982132373,0.4974999,82.337,82.298,0.47857918]
[1772982133873,0.4974999,82.329,82.297,12.15111121]
[1772982135269,12.1465358,82.328,82.293,12.15170184]
[1772982135473,0.4974999,82.327,82.293,12.15170184]
[1772982136076,0.4974999,82.327,82.293,12.63028102]
[1772982136378,0.4974999,82.327,82.294,0.47857918]
[1772982137158,0.4974999,82.327,82.293,12.15170184]
[1772982138370,0.4974999,82.325,82.289,0.47857918]
[1772982139575,0.4974999,82.325,82.291,0.47857918]
[1772982139763,12.14712598,82.324,82.291,0.47857918]
[1772982139968,0.4974999,82.323,82.291,0.47857918]
[1772982140276,12.14653117,82.329,82.291,0.47857918]
[1772982140980,0.4974999,82.328,82.291,0.47857918]
[1772982141271,12.14668334,82.327,82.291,0.47857918]
[1772982141479,0.4974999,82.326,82.293,0.47857918]
[1772982142577,0.4974999,82.319,82.294,12.15155418]
[1772982143358,0.4974999,82.319,82.295,0.47857918]
[1772982146071,0.4974999,82.319,82.296,12.15125887]
[1772982146582,0.4974999,82.319,82.27,103.6]
[1772982146583,0.4974999,82.309,82.273,0.47857918]
[1772982146959,0.4974999,82.299,82.272,12.15480357]
[1772982147166,0.4974999,82.299,82.26,0.47857918]
[1772982147490,0.4974999,82.289,82.252,0.47857918]
[1772982148292,0.4974999,82.287,82.254,0.47857918]
[1772982149686,0.4974999,82.269,82.244,12.15891844]
[1772982149881,0.4974999,82.269,82.244,12.63749762]
[1772982152275,0.4974999,82.269,82.245,0.47857918]
[1772982152872,0.49974876,82.289,82.245,0.47857918]
[1772982154884,0.49974876,82.289,82.247,0.47085232]
[1772982155988,12.15222221,82.29,82.247,0.47085232]
[1772982155989,0.49974876,82.287,82.247,0.47085232]
[1772982157596,1.6,82.311,82.248,12.15835035]
[1772982157597,0.49974876,82.279,82.248,12.15835035]
[1772982159400,0.49974876,82.278,82.246,30.39661503]
[1772982159876,0.49974876,82.278,82.247,0.47085232]
[1772982161887,0.49974876,82.278,82.249,0.47085232]
[1772982163789,12.15400676,82.278,82.25,12.15805471]
[1772982163993,0.49974876,82.277,82.25,12.15805471]
[1772982165103,0.49974876,82.277,82.25,12.62890703]
[1772982166101,0.49974876,82.275,82.25,12.62890703]
[1772982167004,0.49974876,82.275,82.251,0.47085232]
[1772982171099,0.49974876,82.275,82.253,0.47085232]
[1772982171804,60.7481802,82.307,82.252,12.15775908]
[1772982171805,12.15178939,82.293,82.254,0.47085232]
[1772982172304,4.72200713,82.29,82.254,0.47085232]
[1772982172991,12.15178939,82.293,82.254,0.47085232]
[1772982173796,0.422177,82.29,82.256,0.47085232]
[1772982174524,12.57356912,82.296,82.256,0.47085232]
[1772982174819,0.422177,82.295,82.256,0.47085232]
[1772982176423,0.422177,82.295,82.258,0.47085232]
[1772982176594,0.422177,82.318,82.259,0.47085232]
[1772982176797,0.422177,82.318,82.262,0.47085232]
[1772982177393,0.422177,82.318,82.263,8.51860971]
[1772982177606,0.422177,82.318,82.27,0.47085232]
[1772982178114,30.36343465,82.336,82.27,0.47085232]
[1772982178115,0.422177,82.328,82.27,0.47085232]
[1772982178808,0.422177,82.326,82.276,0.47085232]
[1772982179009,0.422177,82.309,82.272,0.47085232]
[1772982179620,0.422177,82.309,82.273,0.47085232]
[1772982180610,0.422177,82.308,82.275,0.47085232]
[1772982183423,0.422177,82.308,82.259,107.29383402]
[1772982183424,0.422177,82.308,82.277,0.48217785]
[1772982185511,0.422177,82.308,82.261,103.88432314]
[1772982185512,0.422177,82.308,82.279,0.45146904]
[1772982186315,0.422177,82.312,82.279,0.45146904]
[1772982187620,0.422177,82.312,82.281,0.45146904]
[1772982188703,0.422177,82.337,82.282,0.45146904]
[1772982189113,0.422177,82.343,82.284,0.28432314]
[1772982189308,0.422177,82.348,82.294,0.45146904]
[1772982189507,0.422177,82.348,82.295,42.52992283]
[1772982189819,12.14327456,82.351,82.296,0.45146904]
[1772982190206,12.56545156,82.351,82.296,0.45146904]
[1772982190702,0.422177,82.349,82.299,0.45146904]
[1772982192919,12.564692,82.356,82.302,0.45146904]
[1772982193233,0.422177,82.355,82.302,0.45146904]
[1772982193808,6.80413586,82.357,82.304,0.45146904]
[1772982194012,6.80413586,82.357,82.312,3.69383402]
[1772982194324,6.80413586,82.357,82.322,0.45146904]
[1772982194810,12.56240811,82.371,82.324,0.28432314]
[1772982195011,0.422177,82.38,82.325,0.45146904]
[1772982195244,0.422177,82.38,82.328,0.45146904]
[1772982195738,0.422177,82.38,82.331,0.45146904]
[1772982199615,0.422177,82.38,82.333,0.73579218]
[1772982199815,0.422177,82.38,82.334,0.45146904]
[1772982202225,0.422177,82.378,82.336,0.45146904]
[1772982202821,0.422177,82.378,82.337,0.45146904]
[1772982204143,12.56047132,82.384,82.337,0.45146904]
[1772982204317,12.56047132,82.384,82.336,0.14216157]
[1772982204318,12.56047132,82.384,82.338,42.5077121]
[1772982204644,12.56047132,82.384,82.34,0.45146904]
[1772982205333,0.422177,82.383,82.34,0.45146904]
[1772982206239,0.422177,82.379,82.34,0.45146904]
[1772982206744,0.422177,82.377,82.341,12.59608715]
[1772982207248,0.422177,82.377,82.342,0.45146904]
[1772982209940,0.422177,82.375,82.344,0.45146904]
[1772982216440,0.422177,82.373,82.346,0.48511738]
[1772982219448,0.422177,82.371,82.348,0.48511738]
[1772982220948,0.422177,82.369,82.32,12.14771622]
[1772982221152,0.422177,82.369,82.322,0.48511738]
[1772982221327,0.422177,82.359,82.322,0.48511738]
[1772982221527,0.422177,82.357,82.324,0.48511738]
[1772982223754,0.422177,82.355,82.326,0.48511738]
[1772982225738,0.422177,82.355,82.328,0.48511738]
[1772982228068,0.422177,82.355,82.33,0.48511738]
[1772982228859,0.422177,82.353,82.33,0.48511738]
[1772982231658,0.422177,82.353,82.332,0.48511738]
[1772982233749,0.422177,82.353,82.333,12.14579816]
[1772982235559,0.422177,82.353,82.333,0.48511738]
[1772982237463,0.422177,82.353,82.335,0.48511738]
[1772982239144,0.422177,82.351,82.334,12.14565064]
[1772982239348,0.422177,82.351,82.334,12.63076802]
[1772982239545,0.422177,82.349,82.327,12.14654312]
[1772982239761,0.422177,82.349,82.323,12.14722435]
[1772982240768,0.422177,82.349,82.291,60.75986077]
[1772982240769,0.422177,82.329,82.292,12.15172737]
[1772982240969,0.422177,82.329,82.283,30.38292021]
[1772982240970,0.422177,82.319,82.286,0.48511738]
[1772982241572,0.422177,82.309,82.276,0.48511738]
[1772982241760,0.422177,82.309,82.275,12.15436037]
[1772982242552,4.71593004,82.3,82.275,12.15436037]
[1772982242752,0.422177,82.289,82.243,0.45340749]
[1772982242952,0.422177,82.279,82.244,0.28432314]
[1772982243179,0.422177,82.279,82.245,0.45340749]
[1772982243660,0.422177,82.277,82.247,0.45340749]
[1772982245578,0.422177,82.269,82.246,12.15864601]
[1772982245785,0.422177,82.259,82.229,0.46214085]
[1772982246277,0.222177,82.249,82.215,0.46214085]
[1772982247577,0.222177,82.247,82.215,12.6253714]
[1772982247781,0.222177,82.239,82.21,12.3638328]
[1772982248360,0.222177,82.239,82.213,0.46214085]
[1772982248564,0.222177,82.239,82.21,12.3638328]
[1772982249574,42.55422623,82.248,82.21,0.2]
[1772982249575,0.222177,82.229,82.21,0.2]
[1772982249775,0.222177,82.228,82.214,0.54337543]
[1772982249956,4.71593004,82.22,82.2,0.2]
[1772982250161,4.71593004,82.21,82.181,0.5]
[1772982250670,4.71593004,82.22,82.191,0.5]
[1772982251279,4.71593004,82.22,82.185,12.16757067]
[1772982251460,12.1626388,82.219,82.185,12.16757067]
[1772982251664,4.71593004,82.21,82.185,12.16757067]
[1772982254466,4.71593004,82.2,82.167,0.5]
[1772982254858,4.71593004,82.2,82.181,0.5]
[1772982255076,16.88004281,82.21,82.182,0.5]
[1772982255375,12.16411277,82.21,82.182,0.5]
[1772982255582,4.71593004,82.2,82.182,0.5]
[1772982256076,16.88143424,82.2,82.176,0.5]
[1772982256576,16.88143424,82.2,82.162,0.5]
[1772982256577,4.71593004,82.19,82.162,0.5]
[1772982256780,4.71593004,82.19,82.165,12.17050305]
[1772982257282,4.71593004,82.19,82.162,0.5]
[1772982257664,4.73968562,82.19,82.162,0.5]
[1772982257866,4.73968562,82.18,82.16,0.2]
[1772982258364,12.16855887,82.179,82.16,0.2]
[1772982260084,4.73968562,82.18,82.16,0.2]
[1772982260389,12.16783224,82.184,82.162,12.17093215]
[1772982261477,12.16707831,82.189,82.162,12.17093215]
[1772982262989,12.16707831,82.189,82.16,0.2]
[1772982263288,12.16707831,82.189,82.15,0.2]
[1772982263289,4.73968562,82.17,82.15,0.2]
[1772982264491,4.73968562,82.16,82.15,0.2]
[1772982265193,16.91111392,82.16,82.15,0.2]
[1772982265987,16.91111392,82.16,82.125,0.5]
[1772982266290,16.91111392,82.16,82.095,60.90478589]
[1772982266291,4.73968562,82.14,82.113,0.5]
[1772982267189,4.73968562,82.13,82.113,0.5]
[1772982267484,4.73968562,82.13,82.107,12.17908542]
[1772982267671,4.73968562,82.13,82.108,0.5]
[1772982267874,42.61069649,82.139,82.091,30.45377422]
[1772982267875,42.61069649,82.139,82.102,0.5]
[1772982268070,4.73968562,82.11,82.1,1e-08]
[1772982268282,42.61069649,82.139,82.101,0.5]
[1772982268475,4.73968562,82.13,82.101,0.5]
[1772982268872,4.73968562,82.11,82.1,1e-08]
[1772982269184,12.17893288,82.109,82.1,1e-08]
[1772982269776,12.17893288,82.109,82.077,0.5]
[1772982269992,4.73968562,82.1,82.077,0.5]
[1772982270573,4.73968562,82.1,82.077,12.68368117]
[1772982270773,4.73968562,82.1,82.078,0.5]
[1772982271493,16.91996134,82.1,82.071,0.5]
[1772982271883,16.91996134,82.1,82.052,30.46825686]
[1772982271884,4.73968562,82.09,82.065,0.5]
[1772982272080,4.73968562,82.09,82.065,12.68534717]
[1772982272504,16.91996134,82.1,82.071,0.5]
[1772982273295,12.17744979,82.119,82.073,0.5]
[1772982273876,4.73968562,82.11,82.073,0.5]
[1772982274691,12.17552232,82.132,82.077,3.69383402]
[1772982274893,12.17490334,82.137,82.079,0.5]
[1772982275574,12.16663422,82.192,82.082,4.19383402]
[1772982275890,4.73968562,82.17,82.103,0.5]
[1772982276786,12.17003979,82.169,82.108,0.5]
[1772982276989,12.17003979,82.169,82.109,0.5]
[1772982277777,12.17003979,82.169,82.112,0.5]
[1772982278898,12.17003979,82.169,82.115,0.5]
[1772982279697,0.46046756,82.168,82.114,0.28432314]
[1772982280014,0.46046756,82.166,82.115,42.62315045]
[1772982281696,0.46046756,82.166,82.116,0.49215616]
[1772982282202,0.46046756,82.164,82.118,0.49215616]
[1772982282602,4.73968562,82.17,82.118,0.28432314]
[1772982282801,0.46046756,82.171,82.119,0.49215616]
[1772982283397,4.73968562,82.17,82.119,0.49215616]
[1772982283602,0.46046756,82.169,82.119,0.49215616]
[1772982284015,0.46046756,82.159,82.119,0.49215616]
[1772982284194,0.46046756,82.157,82.12,12.66945766]
[1772982284517,0.46046756,82.157,82.112,0.49215616]
[1772982284518,0.46046756,82.149,82.112,0.49215616]
[1772982285692,4.73968562,82.15,82.086,0.28432314]
[1772982285693,0.46046756,82.147,82.114,0.49215616]
[1772982286810,0.46046756,82.147,82.113,42.61634477]
[1772982287511,0.46046756,82.153,82.113,42.61634477]
[1772982287893,0.46046756,82.151,82.099,0.28432314]
[1772982288089,0.46046756,82.158,82.099,0.28432314]
[1772982288900,0.46046756,82.158,82.103,0.49215616]
[1772982290011,0.46046756,82.169,82.108,0.49215616]
[1772982290211,0.46046756,82.169,82.109,0.49215616]
[1772982291326,0.46046756,82.167,82.112,0.49215616]
[1772982291624,0.46046756,82.167,82.111,0.2764793]
[1772982293516,0.46046756,82.186,82.115,3.69383402]
[1772982293806,0.46046756,82.186,82.121,0.49215616]
[1772982294715,0.46046756,82.186,82.115,3.69383402]
[1772982294716,0.46046756,82.201,82.139,0.49215616]
[1772982295013,0.46046756,82.201,82.141,0.49215616]
[1772982295210,0.46046756,82.228,82.146,0.49215616]
[1772982295416,0.46046756,82.228,82.162,0.49215616]
[1772982295636,1.6,82.274,82.168,0.49215616]
[1772982295637,3.69383402,82.252,82.168,0.49215616]
[1772982295791,3.69383402,82.252,82.18,3.69383402]
[1772982295792,12.15775908,82.252,82.18,3.69383402]
[1772982295991,12.15775908,82.252,82.182,0.49215616]
[1772982296799,3.69383402,82.272,82.181,0.14216157]
[1772982296800,11.85964983,82.3,82.188,4.82477569]
[1772982297116,11.85964983,82.3,82.187,0.49215616]
[1772982297117,12.15164739,82.294,82.219,0.49215616]
[1772982297314,1.96169996,82.301,82.229,0.49215616]
[1772982297497,1.96169996,82.301,82.243,3.69383402]
[1772982297703,0.46046756,82.3,82.245,0.49215616]
[1772982298109,0.46046756,82.299,82.245,0.49215616]
[1772982299899,0.46046756,82.297,82.247,0.49215616]
[1772982300602,0.46046756,82.297,82.248,0.49215616]
[1772982301896,0.46046756,82.269,82.198,0.49215616]
[1772982302104,0.46046756,82.249,82.198,0.49215616]
[1772982302308,0.46046756,82.239,82.191,42.58373787]
[1772982302629,0.48379048,82.209,82.189,0.92454836]
[1772982302911,0.28432314,82.233,82.19,12.16693028]
[1772982302912,0.22384476,82.217,82.19,12.16693028]
[1772982303118,11.85964983,82.22,82.191,0.45952711]
[1772982303419,0.22384476,82.228,82.191,0.45952711]
[1772982304002,0.22384476,82.219,82.189,0.32454836]
[1772982304705,11.85964983,82.21,82.189,0.32454836]
[1772982306023,11.85964983,82.21,82.189,0.1007036]
[1772982306024,0.22384476,82.208,82.189,0.1007036]
[1772982306624,11.85964983,82.2,82.189,0.1007036]
[1772982306822,11.85964983,82.2,82.16,0.5]
[1772982307029,11.85964983,82.19,82.155,12.17203853]
[1772982308106,12.16707831,82.189,82.155,12.17203853]
[1772982308319,12.16707831,82.189,82.132,0.5]
[1772982308320,11.85964983,82.18,82.132,0.5]
[1772982308528,11.85964983,82.18,82.133,0.5]
[1772982309317,11.85964983,82.17,82.133,0.5]
[1772982310220,12.16963028,82.172,82.135,0.5]
[1772982310722,12.16893587,82.177,82.135,0.5]
[1772982310902,11.85964983,82.17,82.135,0.5]
[1772982312207,12.17003979,82.169,82.137,0.5]
[1772982312412,0.48367927,82.168,82.136,12.17492938]
[1772982314316,0.48367927,82.173,82.118,0.28432314]
[1772982314535,11.85964983,82.17,82.119,0.49099158]
[1772982314823,0.48367927,82.169,82.119,0.49099158]
[1772982315924,12.1701879,82.168,82.122,0.49099158]
[1772982316218,0.48367927,82.159,82.125,0.49099158]
[1772982316417,0.48367927,82.149,82.12,12.1773015]
[1772982316721,0.48367927,82.159,82.121,0.49099158]
[1772982317023,0.48367927,82.177,82.121,0.49099158]
[1772982317222,0.48367927,82.177,82.122,0.49099158]
[1772982318921,0.48367927,82.175,82.125,0.49099158]
[1772982321020,0.48367927,82.173,82.127,0.49099158]
[1772982322027,0.48367927,82.169,82.127,0.49099158]
[1772982323905,0.48367927,82.167,82.129,0.49099158]
[1772982327224,0.48367927,82.165,82.131,0.49099158]
[1772982328236,0.48367927,82.159,82.126,12.17638655]
[1772982328437,0.48367927,82.149,82.126,12.17638655]
[1772982329321,12.17158206,82.159,82.122,0.49099158]
[1772982329728,0.48367927,82.158,82.122,0.49099158]
[1772982333028,0.48367927,82.158,82.124,0.49880887]
[1772982334043,0.48367927,82.158,82.126,0.49880887]
[1772982335640,0.48367927,82.158,82.128,0.49880887]
[1772982337537,0.46600147,82.149,82.119,0.49880887]
[1772982338922,0.46600147,82.149,82.12,12.1773015]
[1772982339940,0.46600147,82.147,82.12,12.1773015]
[1772982340530,0.46600147,82.147,82.12,12.67611037]
[1772982340844,0.46600147,82.147,82.121,0.49880887]
[1772982341043,0.46600147,82.162,82.121,0.49880887]
[1772982342635,0.46600147,82.162,82.123,0.49880887]
[1772982342825,0.46600147,82.194,82.126,0.49880887]
[1772982343020,0.46600147,82.194,82.133,0.49880887]
[1772982343225,0.46600147,82.194,82.134,0.49880887]
[1772982343421,12.88728989,82.195,82.134,0.49880887]
[1772982343422,0.46600147,82.189,82.134,0.49880887]
[1772982344937,0.46600147,82.187,82.136,0.49880887]
[1772982348451,0.46600147,82.185,82.138,0.49880887]
[1772982351254,12.16781855,82.184,82.14,0.49880887]
[1772982351442,0.46600147,82.183,82.14,0.49880887]
[1772982353251,0.46600147,82.183,82.141,42.60965899]
[1772982353453,0.46600147,82.183,82.142,0.49880887]
[1772982354535,0.46600147,82.189,82.142,0.49880887]
[1772982354937,0.46600147,82.187,82.142,0.49880887]
[1772982356251,0.46600147,82.185,82.144,0.49880887]
[1772982356443,0.46600147,82.178,82.133,30.93710109]
[1772982356644,0.46600147,82.169,82.133,30.43829222]
[1772982357644,0.46600147,82.169,82.133,0.49880887]
[1772982357848,0.46600147,82.169,82.128,0.49880887]
[1772982358351,0.46600147,82.167,82.13,0.49880887]
[1772982360568,0.46600147,82.165,82.131,12.67447944]
[1772982362177,0.46600147,82.163,82.131,12.67447944]
[1772982363169,12.17107665,82.162,82.131,12.67447944]
[1772982363373,0.4722765,82.161,82.131,12.67447944]
[1772982365680,0.49728255,82.159,82.131,12.67447944]
[1772982366157,0.49728255,82.158,82.117,0.46362993]
[1772982366353,0.49728255,82.149,82.118,12.17759809]
[1772982366770,0.49728255,82.149,82.119,0.46362993]
[1772982367663,0.49728255,82.147,82.121,0.46362993]
[1772982369474,0.49728255,82.145,82.114,0.46362993]
[1772982370287,0.49728255,82.158,82.114,0.46362993]
[1772982372483,12.17181737,82.157,82.115,42.62315045]
[1772982372683,0.49728255,82.166,82.116,0.46362993]
[1772982374096,4.74170947,82.16,82.116,0.46362993]
[1772982374268,0.49728255,82.159,82.116,0.46362993]
[1772982375386,0.49728255,82.159,82.118,0.46362993]
[1772982376265,0.49728255,82.157,82.118,0.46362993]
[1772982378568,0.49728255,82.155,82.12,0.46362993]
[1772982381693,0.49728255,82.153,82.122,0.46362993]
[1772982384575,0.49728255,82.151,82.124,0.46362993]
[1772982386176,0.49728255,82.149,82.125,12.17656012]
[1772982387688,0.49728255,82.149,82.125,11.67656012]
[1772982390587,0.49728255,82.149,82.125,0.46362993]
[1772982391394,0.49728255,82.164,82.125,0.46362993]
[1772982393476,0.4972051,82.162,82.127,0.46552035]
[1772982396194,0.4972051,82.16,82.129,0.46552035]
[1772982399696,0.4972051,82.158,82.131,0.46552035]
[1772982400713,12.17152107,82.159,82.131,0.46552035]
[1772982400919,12.66783736,82.165,82.131,0.46552035]
[1772982401619,12.66783736,82.165,82.133,0.46552035]
[1772982405520,12.66783736,82.165,82.134,42.61329047]
[1772982405707,0.4972051,82.177,82.135,0.46552035]
[1772982405904,0.4972051,82.176,82.135,0.46552035]
[1772982406305,0.4972051,82.194,82.138,0.46552035]
[1772982407815,0.4972051,82.189,82.14,0.46552035]
[1772982409930,0.4972051,82.187,82.142,0.46552035]
[1772982410829,0.4972051,82.179,82.142,0.46552035]
[1772982412431,0.4972051,82.149,82.119,0.46552035]
[1772982412732,4.74288014,82.15,82.119,0.46552035]
[1772982413226,12.16870695,82.178,82.109,0.49860255]
[1772982413227,4.74288014,82.14,82.109,0.49860255]
[1772982414316,0.14216157,82.162,81.924,68.25873178]
[1772982414317,4.74288014,82.13,82.104,0.49860255]
[1772982415624,12.17596707,82.129,82.104,0.49860255]
[1772982419129,42.59928676,82.161,82.106,0.49860255]
[1772982419335,4.74288014,82.14,82.106,0.49860255]
[1772982420420,4.74288014,82.15,82.108,0.49860255]
[1772982420632,4.74288014,82.14,82.108,0.49860255]
[1772982423328,4.74288014,82.15,82.11,0.49860255]
[1772982424653,0.28432314,82.158,82.11,0.49860255]
[1772982424824,42.60032375,82.159,82.11,0.49860255]
[1772982425647,42.60032375,82.159,82.112,0.49860255]
[1772982426040,4.74288014,82.15,82.112,0.49860255]
[1772982429752,12.17300271,82.149,82.114,0.49860255]